[Event "1st Bangalore GM-Open-A 2024"]
[Site "Bangalore"]
[Date "2024.01.25"]
[Round "9.5"]
[White "Iniyan, Pa"]
[Black "Neelash Saha"]
[Result "1/2-1/2"]
[ECO "D37"]
[WhiteElo "2515"]
[BlackElo "2446"]
[Annotator "RC"]
[PlyCount "107"]
[EventDate "2024.01.20"]
[EventType "swiss"]
[EventCountry "IND"]
[SourceTitle "playchess.com"]
[Source "ChessBase"]
[SourceQuality "1"]
[TimeControl "5400+30"]

1. d4 {[%emt 0:04:24]} Nf6 {[%emt 0:00:02]} 2. c4 {[%emt 0:00:10]} e6 {[%emt 0:00:04]} 3. Nf3 {[%emt 0:00:18]} d5 {[%emt 0:00:06]} 4. Nc3 {[%emt 0:00:09]} Be7 {[%emt 0:00:05]} 5. Bf4 {[%emt 0:00:08]} O-O {[%emt 0:00:18]} 6. e3 {[%emt 0:00:07]} Nbd7 {[%emt 0:00:37]} 7. c5 {[%emt 0:00:18]} Nh5 {[%emt 0:00:07]} 8. Bd3 {[%emt 0:00:28]} Nxf4 {[%emt 0:00:06]} 9. exf4 {[%emt 0:00:07]} b6 {[%emt 0:00:11]} 10. b4 {[%emt 0:00:16]} a5 {[%emt 0:00:05]} 11. a3 {[%emt 0:00:07]} c6 {[%emt 0:00:05]} 12. O-O {[%emt 0:00:17]} Ba6 {[%emt 0:00:07]} 13. Bxa6 {[%emt 0:03:15]} Rxa6 {[%emt 0:00:06]} 14. Qe2 {[%emt 0:00:08]} Qa8 {[%emt 0:03:47]} 15. b5 {[%emt 0:00:37]} cxb5 {[%emt 0:00:07]} 16. Qxb5 {[%emt 0:02:36]} Ra7 {[%emt 0:00:01]} 17. c6 {[%emt 0:01:40]} Nb8 {[%emt 0:00:05]} 18. Rfc1 {[%emt 0:11:20]} Rc7 {[%emt 0:05:10]} 19. Ne5 {[%emt 0:01:11]} Rfc8 {[%emt 0:00:24]} 20. Qxb6 {[%emt 0:06:16]} Nxc6 {[%emt 0:00:05]} 21. Nb5 {[%emt 0:00:51]} Rb7 {[%emt 0:00:04]} 22. Nxc6 {[%emt 0:00:08]} Bf8 {[%emt 0:00:03]} 23. Ne7+ {[%emt 0:03:36]} Bxe7 {[%emt 0:00:04]} 24. Rxc8+ {[%emt 0:00:10]} Qxc8 {[%emt 0:00:02]} 25. Qxa5 {[%emt 0:00:13]} Qb8 {[%emt 0:00:03]} 26. a4 {[%emt 0:01:15]} Qxf4 {[%emt 0:00:03]} 27. g3 {[%emt 0:00:18]} Qb8 {[%emt 0:00:04]} 28. Rc1 {[%emt 0:00:46]} g6 {[%emt 0:00:40]} 29. Rc6 {[%emt 0:04:48]} Kg7 {[%emt 0:01:05]} 30. Kg2 {[%emt 0:00:09]} h5 {[%emt 0:03:35]} 31. h4 {[%emt 0:05:55]} Bd8 {[%emt 0:05:26]} 32. Qa6 {[%emt 0:11:08]} Be7 {[%emt 0:00:24]} 33. Qa5 {[%emt 0:12:19]} Bd8 {[%emt 0:00:19]} 34. Qd2 {[%emt 0:03:15]} Rxb5 {[%emt 0:02:34]} 35. axb5 {[%emt 0:00:10]} Qxb5 {[%emt 0:00:03]} 36. Rc8 {[%emt 0:02:36]} Bf6 {[%emt 0:02:52]} 37. Qc3 {[%emt 0:10:10]} Qb7 {[%emt 0:00:13]} 38. Re8 {[%emt 0:00:15]} Be7 {[%emt 0:03:33]} 39. Qa5 {[%emt 0:01:28]} Kh7 {[%emt 0:02:08]} 40. Qa4 {[%emt 0:02:13]} Bf6 {[%emt 0:15:05]} 41. Qa3 {[%emt 0:01:13]} Qb1 {[%emt 0:00:24]} 42. Rf8 {[%emt 0:03:31]} Qb7 {[%emt 0:01:24]} 43. Re8 {[%emt 0:04:19]} Qb1 {[%emt 0:00:09]} 44. Qf8 {[%emt 0:00:46]} Qe4+ {[%emt 0:00:06]} 45. Kg1 {[%emt 0:00:15]} Qe1+ {[%emt 0:00:10]} 46. Kg2 {[%emt 0:00:03]} Qe4+ {[%emt 0:00:04]} 47. Kh2 {[%emt 0:00:04]} Qf5 {[%emt 0:00:04]} 48. Qxf7+ {[%emt 0:00:07]} Kh6 {[%emt 0:00:03]} 49. Qf8+ {[%emt 0:02:48]} Kh7 {[%emt 0:00:07]} 50. Kg2 {[%emt 0:00:39]} Qe4+ {[%emt 0:00:03]} 51. Kg1 {[%emt 0:00:08]} Qe1+ {[%emt 0:00:06]} 52. Kg2 {[%emt 0:00:04]} Qe4+ {[%emt 0:00:03]} 53. Kh2 {[%emt 0:00:06]} Qf5 {[%emt 0:00:03]} 54. Kg2 {[%emt 0:00:19]} 1/2-1/2

[Event "1st Bangalore GM-Open-A 2024"]
[Site "Bangalore"]
[Date "2024.01.25"]
[Round "9.6"]
[White "Pranav Anand"]
[Black "Neelotpal, Das"]
[Result "1/2-1/2"]
[ECO "C50"]
[WhiteElo "2513"]
[BlackElo "2329"]
[Annotator "TA"]
[PlyCount "84"]
[EventDate "2024.01.20"]
[EventType "swiss"]
[EventCountry "IND"]
[SourceTitle "playchess.com"]
[Source "ChessBase"]
[SourceQuality "1"]
[TimeControl "5400+30"]

{[%evp 31,84,-103,-115,-181,-166,-146,-130,-231,-233,-245,-237,-234,-249,-245,-244,-244,-241,-241,-192,-190,-196,-289,-281,-266,-97,-383,-124,-113,-114,-100,-130,-115,-66,-108,-137,-97,0,0,0,0,0,0,0,0,162,0,0,0,0,0,0,0,0,0,0]} 1. e4 {[%emt 0:01:06]} e5 {[%emt 0:00:05]} 2. Nf3 {[%emt 0:00:04]} Nc6 {[%emt 0:00:06]} 3. Bc4 {[%emt 0:00:04]} Bc5 {[%emt 0:00:04]} 4. d3 {[%emt 0:00:03]} Nf6 {[%emt 0:00:06]} 5. Bg5 {[%emt 0:00:06]} h6 {[%emt 0:00:07]} 6. Bh4 {[%emt 0:00:04]} Be7 {[%emt 0:03:09] C50: Italienische Partie.} 7. Bg3 {[%emt 0:01:09]} d6 {[%emt 0:00:07]} 8. a4 {[%emt 0:00:03]} O-O {[%emt 0:03:37]} 9. c3 {[%emt 0:03:21]} Kh8 {[%emt 0:04:30]} 10. a5 {[%emt 0:05:49]} Rb8 $146 {[%emt 0:18:25]} ({Predecessor:} 10... a6 11. Nbd2 Ng8 12. d4 f5 13. d5 Nb8 14. exf5 Bxf5 15. Qe2 Nf6 16. Bd3 Bxd3 17. Qxd3 {½-½ Navara,D (2682)-Narayanan,S (2662) Prague Cez Trophy m rapid 2022 (3)}) 11. Nbd2 {[%emt 0:11:55]} Nh7 {[%emt 0:03:30]} 12. b4 {[%emt 0:03:49]} a6 {[%emt 0:02:32]} 13. Nf1 {[%emt 0:10:08]} f5 {[%emt 0:02:31]} 14. exf5 {[%emt 0:01:08]} d5 {[%emt 0:01:09]} 15. Bb3 {[%emt 0:00:58]} d4 {[%emt 0:10:08]} 16. Nxe5 {[%emt 0:10:14]} (16. Bxe5 $2 Ng5 17. N1d2 (17. cxd4 $2 Nxf3+ 18. gxf3 Bxb4+ 19. Ke2 Nxd4+ 20. Bxd4 Qxd4 $19) 17... dxc3 $19 (17... Rxf5 18. Bxd4 Bxb4 19. O-O $11) (17... Bxf5 18. O-O $17)) 16... Bxf5 {[%emt 0:20:29]} 17. Qh5 {[%emt 0:19:59]} (17. Bc4 $17 {war einen Versuch wert.}) 17... Nxe5 {[%emt 0:10:50]} (17... dxc3 18. Qxf5 Nxe5 19. Qxe5 $14) 18. Bxe5 {[%emt 0:00:07]} dxc3 {[%emt 0:03:26]} (18... Bxd3 19. Bxd4 Bxb4 20. Qd5 Qxd5 (20... Qe8+ 21. Ne3 $11) 21. Bxd5 $17) 19. Ne3 {[%emt 0:06:42]} (19. d4 $17 c2 (19... Bxb4 20. Ne3 $17) 20. Ne3 Bxb4+ 21. Ke2) 19... Qxd3 $19 {[%emt 0:01:50]} (19... Bxd3 20. O-O-O Bg5 (20... Bxb4 21. Bxg7+ Kxg7 22. Qg4+ Qg5 23. Qxb4 $16) (20... Rxf2 21. Qxh6 $11) 21. f4 Bxf4 22. Bxf4 Rxf4 23. Qc5 $17) 20. Rd1 {[%emt 0:01:15]} c2 {[%emt 0:06:49]} 21. Rxd3 {[%emt 0:00:57]} c1=Q+ {[%emt 0:00:12]} (21... c1=R+ $2 22. Rd1 Bxb4+ 23. Kf1 $18 (23. Ke2 Rc5 $18)) 22. Rd1 {[%emt 0:00:06]} Bxb4+ {[%emt 0:00:20]} 23. Ke2 {[%emt 0:00:28]} Qc6 $1 {[%emt 0:00:38]} (23... Qc5 $2 24. Rd5 Qc6 25. Nxf5 $18) 24. Rd5 {[%emt 0:09:36]} (24. Nxf5 $2 Qb5+ $19 (24... Qxg2 $2 25. Bxg7+ $18) (24... Qxg2 $2 25. Bxg7+ $18)) (24. Bxg7+ Kxg7 25. Nxf5+ Kh8 $19) 24... Be4 {[%emt 0:02:12]} 25. Qg4 {[%emt 0:03:03]} Ng5 {[%emt 0:00:04]} 26. f4 {[%emt 0:01:02]} (26. h4 $142 Bxd5 27. Bxd5 Qb5+ 28. Qc4) 26... Ne6 $19 {[%emt 0:01:42]} 27. Rhd1 {[%emt 0:03:01] [#]} Bc3 $2 {[%emt 0:02:55]} (27... Rbe8 $1 $19 {und Schwarz behält klar die Oberhand.} 28. f5 Ng5) 28. Rc1 $2 {[%emt 0:01:21][%mdl 8192]} (28. Bxc3 $17 {ist der einzige Weg für Weiss..} Qxc3 29. Qxe6 Bxd5 30. Qxd5 Rxf4 31. Qd3 Qxa5 32. Bc2) 28... Bxe5 $2 {[%emt 0:01:42]} (28... Bxd5 $19 {ist viel giftiger.} 29. Bxd5 Nxf4+ (29... Qb5+ $2 30. Bc4 $19) 30. Bxf4 Qf6) 29. Rxc6 $17 {[%emt 0:00:22]} Nxf4+ {[%emt 0:00:10]} 30. Kd2 {[%emt 0:01:34]} Bxd5 {[%emt 0:00:51]} ({Minderwertig wäre} 30... bxc6 31. Rxe5 Rfd8+ (31... Rbd8+ 32. Kc3 $16) 32. Ke1 Nd3+ 33. Ke2 Nc1+ 34. Kf2 Nd3+ 35. Kg1 Nxe5 36. Qxe4 Rxb3 37. Qxe5 $18) 31. Rc5 {[%emt 0:00:28]} Bxb3 {[%emt 0:00:53]} 32. Rxe5 {[%emt 0:00:03]} Rbd8+ {[%emt 0:00:35]} 33. Kc3 {[%emt 0:00:00] [#]} Rd3+ {[%emt 0:00:20]} (33... Be6 $1 $17 34. Nf5 (34. Rxe6 h5 $17) 34... Bxf5 35. Rxf5 Ne2+ 36. Kb2 Rd2+ 37. Kb1 Rfd8) 34. Kb2 $11 {[%emt 0:00:09]} Bg8 {[%emt 0:00:49]} 35. Nf5 {[%emt 0:02:32]} g5 $1 {[%emt 0:00:01]} 36. g3 {[%emt 0:00:25]} Rb3+ {[%emt 0:00:59]} 37. Kc2 {[%emt 0:00:05]} Nd3 $2 {[%emt 0:00:35]} (37... Rb4 $1 $11 38. gxf4 Rxf4) 38. Re3 $2 {[%emt 0:02:56]} ({Vorzuziehen ist} 38. Rd5 $18 {jetzt Qd4+ und aus.} Nb4+ 39. Kxb3 Nxd5 40. Qd4+ (40. Nxh6 $2 {geht unter.} Ne3+ 41. Nxg8 Nxg4 $19) 40... Nf6+ 41. Ka3) 38... Rd8 {[%emt 0:00:19]} 39. Qh5 {[%emt 0:02:26]} Nb4+ {[%emt 0:00:17]} 40. Kc1 {[%emt 0:00:01]} Na2+ $1 {[%emt 0:00:24]} 41. Kc2 {[%emt 0:00:01]} Nb4+ {[%emt 0:00:18]} 42. Kc1 {[%emt 0:00:01]} Na2+ $1 {[%emt 0:00:14]} 1/2-1/2

[Event "1st Bangalore GM-Open-A 2024"]
[Site "Bangalore"]
[Date "2024.01.25"]
[Round "9.7"]
[White "Shyam, Sundar M."]
[Black "Ilamparthi A R"]
[Result "1-0"]
[ECO "A49"]
[WhiteElo "2497"]
[BlackElo "2426"]
[Annotator "TA"]
[PlyCount "89"]
[EventDate "2024.01.20"]
[EventType "swiss"]
[EventCountry "IND"]
[SourceTitle "playchess.com"]
[Source "ChessBase"]
[SourceQuality "1"]
[TimeControl "5400+30"]

{[%evp 16,89,18,10,17,3,9,-31,-34,-78,-49,-69,-72,-96,-50,-106,-47,-50,-57,-58,-57,-62,-61,-59,-57,-57,-63,-82,-80,-81,0,-47,0,0,0,0,0,0,0,0,104,118,222,246,243,239,211,245,470,462,579,551,554,560,580,559,747,724,784,756,764,768,756,727,773,833,811,831,1353,1196,29944,6203,29982,29983,29985,29986]} 1. Nf3 {[%emt 0:00:08]} Nf6 {[%emt 0:01:44]} 2. b3 {[%emt 0:01:10]} g6 {[%emt 0:00:10]} 3. Bb2 {[%emt 0:00:05]} Bg7 {[%emt 0:00:05]} 4. g3 {[%emt 0:00:04]} c5 {[%emt 0:00:37]} 5. Bg2 {[%emt 0:00:09]} O-O {[%emt 0:01:59]} 6. O-O {[%emt 0:00:10]} d6 {[%emt 0:00:29]} 7. d4 {[%emt 0:00:54]} cxd4 {[%emt 0:00:30]} 8. Nxd4 {[%emt 0:00:08]} d5 {[%emt 0:01:44]} 9. c4 {[%emt 0:01:34]} e5 {[%emt 0:05:24]} 10. Nc2 {[%emt 0:07:13]} d4 {[%emt 0:06:14]} 11. Nd2 {[%emt 0:04:28]} Nc6 {[%emt 0:02:04] Black is slightly better.} 12. e4 {[%emt 0:02:44]} a5 {[%emt 0:04:38]} 13. Ba3 {[%emt 0:08:08]} Re8 {[%emt 0:01:24]} 14. Ne1 {[%emt 0:00:27]} h5 {[%emt 0:08:17]} (14... Bg4 $17 15. f3 Be6) 15. c5 {[%emt 0:09:00] [#]} (15. Nd3 $15) 15... Be6 {[%emt 0:07:32]} (15... Bg4 $1 $17 {[%cal Rg4d1]} 16. f3 Be6) 16. Nc4 {[%emt 0:01:56]} Bxc4 {[%emt 0:04:22]} 17. bxc4 {[%emt 0:00:03]} Nb4 {[%emt 0:01:04]} 18. Nd3 {[%emt 0:00:10]} Qc7 {[%emt 0:10:55]} 19. Bxb4 {[%emt 0:20:57]} axb4 {[%emt 0:00:02]} 20. Rb1 {[%emt 0:00:05]} Bf8 {[%emt 0:09:44]} 21. Rxb4 {[%emt 0:01:27]} Bxc5 {[%emt 0:03:30]} 22. Rb5 {[%emt 0:00:38]} Bf8 {[%emt 0:05:53]} (22... b6 $17 23. a4 Kg7) 23. c5 {[%emt 0:05:33]} (23. Qb1 $11) 23... Ra3 {[%emt 0:01:12]} (23... Rxa2 $15 24. Qb3 Ra7) 24. Qb1 $11 {[%emt 0:01:26]} Nd7 {[%emt 0:01:59]} 25. Rc1 {[%emt 0:10:40]} (25. Rxb7 $5 Qc6 $8 26. Rb3 Rxb3 (26... Bxc5 27. Bh3 $16) 27. Qxb3 $11) 25... Qc6 {[%emt 0:05:00]} 26. Bf1 {[%emt 0:03:52]} Qxe4 {[%emt 0:08:38]} 27. Rxb7 {[%emt 0:00:45][%cal Ob1b5]} Nf6 {[%emt 0:00:15]} (27... Qc6 $11 {keeps the balance.}) 28. c6 $16 {[%emt 0:01:40][%cal Bc5c6,Bc6c7][%mdl 32] White leaves nothing to chance now.} Bd6 {[%emt 0:04:21]} (28... Kg7 $16) 29. c7 $18 {[%emt 0:01:46]} Rc3 {[%emt 0:00:55]} 30. Rxc3 {[%emt 0:04:13]} dxc3 {[%emt 0:00:02]} 31. Qb5 {[%emt 0:00:06][%cal Ob5e8] [#] Qxe8+! would now be deadly.} Rf8 {[%emt 0:03:25]} (31... Qf5 32. Rb8 Bxc7 33. Rxe8+ Nxe8) 32. Rb8 {[%emt 0:06:50] Hoping for Rxf8+.} Qf5 {[%emt 0:00:04]} 33. Rxf8+ {[%emt 0:00:26]} Kxf8 {[%emt 0:00:02]} 34. Qc6 {[%emt 0:01:42][%csl LRc3,LRd6]} Bxc7 {[%emt 0:00:08]} 35. Qxc7 {[%emt 0:00:02]} e4 {[%emt 0:01:55]} 36. Ne5 {[%emt 0:03:00][%csl Ge5][%cal Rc7f7]} Nd5 {[%emt 0:00:06]} 37. Qd6+ {[%emt 0:01:06]} Kg8 {[%emt 0:00:07]} 38. Qxd5 {[%emt 0:00:22]} c2 {[%emt 0:00:04]} 39. Qc5 {[%emt 0:00:36]} c1=Q {[%emt 0:00:07]} 40. Qxc1 {[%emt 0:00:03]} Qxe5 {[%emt 0:00:04]} 41. a4 {[%emt 0:00:34][%cal Ba2a4,Ba4a5,Ba5a6][%mdl 32]} h4 {[%emt 0:00:26]} 42. Qf4 {[%emt 0:00:15]} Qd4 {[%emt 0:00:23]} 43. a5 {[%emt 0:00:07] White wants to mate with a6.} hxg3 {[%emt 0:00:26]} 44. hxg3 {[%emt 0:00:02]} Qc5 {[%emt 0:00:13]} 45. a6 {[%emt 0:00:05] Weighted Error Value: White=0.09 (flawless) /Black=0.66.  Mistake:       	White=2     	Black=7      Inaccurate:     	White=2     	Black=2      OK:         	White=9     	Black=7      Best:        	White=4     	Black=3} 1-0

[Event "1st Bangalore GM-Open-A 2024"]
[Site "Bangalore"]
[Date "2024.01.25"]
[Round "9.8"]
[White "Chanda, Sandipan"]
[Black "Dere Pushkar"]
[Result "1/2-1/2"]
[ECO "D12"]
[WhiteElo "2486"]
[BlackElo "2191"]
[Annotator "TA"]
[PlyCount "97"]
[EventDate "2024.01.20"]
[EventType "swiss"]
[EventCountry "IND"]
[SourceTitle "playchess.com"]
[Source "ChessBase"]
[SourceQuality "1"]
[TimeControl "5400+30"]

{[%evp 9,97,10,16,16,18,14,14,26,31,3,3,11,7,25,28,36,39,29,27,37,29,11,15,6,14,0,3,1,37,33,45,33,74,81,64,70,93,18,26,3,5,0,0,0,0,0,0,0,0,0,0,0,0,0,0,0,0,0,18,0,0,0,0,0,0,0,0,0,0,0,0,0,0,0,0,0,0,0,0,-8,0,0,0,-6,0,-6,0,0,0,0]} 1. d4 {[%emt 0:00:04]} d5 {[%emt 0:06:14]} 2. c4 {[%emt 0:00:13]} c6 {[%emt 0:02:54]} 3. Nf3 {[%emt 0:00:09]} Nf6 {[%emt 0:00:05]} 4. e3 {[%emt 0:00:15]} Bf5 {[%emt 0:00:09]} 5. Bd3 {[%emt 0:00:10]} Bg6 {[%emt 0:00:05]} 6. O-O {[%emt 0:00:30]} e6 {[%emt 0:00:30]} 7. Qc2 {[%emt 0:00:15]} Nbd7 {[%emt 0:04:26]} 8. Nbd2 {[%emt 0:00:21]} Bd6 {[%emt 0:06:28]} 9. e4 {[%emt 0:00:31]} dxe4 {[%emt 0:02:04]} 10. Nxe4 {[%emt 0:00:08]} Nxe4 {[%emt 0:01:11]} 11. Bxe4 {[%emt 0:00:03]} Nf6 {[%emt 0:01:47]} 12. Bxg6 {[%emt 0:02:11]} hxg6 {[%emt 0:00:24]} 13. Bg5 {[%emt 0:03:52]} Qc7 {[%emt 0:03:16][%cal Rd6h2]} 14. g3 {[%emt 0:00:33]} O-O {[%emt 0:05:47]} 15. a3 {[%emt 0:14:14]} (15. c5 $5 Be7 $8 16. h4 $14) 15... c5 {[%emt 0:06:04]} 16. dxc5 {[%emt 0:04:57]} Bxc5 {[%emt 0:03:00]} 17. b4 {[%emt 0:01:09]} Be7 {[%emt 0:01:06]} 18. c5 {[%emt 0:02:02]} Nd5 {[%emt 0:00:43]} 19. Bxe7 {[%emt 0:03:49]} Qxe7 {[%emt 0:00:27]} 20. Ne5 {[%emt 0:00:31]} a5 {[%emt 0:03:29]} 21. b5 {[%emt 0:03:12] Weiß steht aktiver.} Rfc8 {[%emt 0:00:55]} 22. Rfc1 {[%emt 0:02:13]} Rc7 {[%emt 0:03:16]} 23. Rab1 {[%emt 0:10:49]} (23. c6 $16) 23... Rac8 $1 $11 {[%emt 0:01:30]} 24. c6 {[%emt 0:00:53]} bxc6 $1 {[%emt 0:02:57] Die Stellung ist ausgeglichen.} 25. Nxc6 {[%emt 0:14:39]} (25. b6 $5 Rb7 $8 26. Nc4 $14) 25... Qxa3 {[%emt 0:01:41]} 26. Ra1 {[%emt 0:00:17]} Qf3 {[%emt 0:10:58]} 27. Qd2 {[%emt 0:00:25][%cal Oc6e7] [#] Gegen Nb4 gerichtet. Zielt auf Ne7+! ab.} Ra8 {[%emt 0:00:48]} 28. Ra4 {[%emt 0:09:45]} g5 {[%emt 0:10:46]} 29. Rca1 {[%emt 0:12:47]} f6 {[%emt 0:08:04]} 30. Nd4 {[%emt 0:03:38]} Qc3 {[%emt 0:00:16]} 31. Qxc3 {[%emt 0:01:07]} Nxc3 {[%emt 0:00:04]} 32. Rxa5 {[%emt 0:00:08]} (32. Nxe6 $2 {geht unter.} Re7 33. Rc4 Ne2+ (33... Nxb5 34. Rc5 $17) 34. Kf1 Rxe6 $17) 32... Rxa5 {[%emt 0:00:59]} 33. Rxa5 {[%emt 0:00:02][%mdl 4096] Endspiel. KRN-KRN} e5 {[%emt 0:04:34]} 34. b6 {[%emt 0:02:52]} Rb7 {[%emt 0:00:14]} 35. Ra8+ {[%emt 0:00:21]} ({Viel schwächer wäre} 35. Nb5 Ne4 $15) 35... Kh7 {[%emt 0:00:16]} 36. Ra7 {[%emt 0:00:09]} Rxb6 {[%emt 0:00:24]} 37. Nf5 {[%emt 0:00:02]} Ne2+ {[%emt 0:02:07]} 38. Kg2 {[%emt 0:00:15]} ({Finger weg von} 38. Kf1 Nd4 39. Nxd4 exd4 $14) 38... Nd4 {[%emt 0:01:33]} 39. Nxg7 {[%emt 0:00:03]} Kg6 {[%emt 0:00:39]} 40. Ne8 {[%emt 0:03:06]} Nf5 {[%emt 0:01:04]} 41. g4 {[%emt 0:02:26]} Nh4+ {[%emt 0:00:11]} 42. Kf1 {[%emt 0:00:04]} Nf3 {[%emt 0:00:55]} 43. Kg2 {[%emt 0:01:34]} Nh4+ {[%emt 0:00:21]} 44. Kf1 {[%emt 0:00:02]} Nf3 {[%emt 0:00:57]} 45. Kg2 {[%emt 0:00:01]} e4 {[%emt 0:00:19] [#] ...Nh4+ wäre nun fies.} 46. Rg7+ {[%emt 0:01:18]} Kh6 {[%emt 0:00:04]} 47. Rf7 {[%emt 0:00:08]} Kg6 {[%emt 0:01:02]} 48. Rg7+ {[%emt 0:00:02]} Kh6 {[%emt 0:00:02]} 49. Rf7 {[%emt 0:00:05] Gewichteter Fehlerwert: Weiß=0.06 (makellos) /Schwarz=0.04 (makellos) .  Fehler:       	Weiß=1     	---        Ungenau:       	Weiß=1     	Schwarz=2     OK:         	Weiß=20    	Schwarz=11    Bester:       	Weiß=4     	Schwarz=2     Stark:        	---       	Schwarz=2} 1/2-1/2

[Event "1st Bangalore GM-Open-A 2024"]
[Site "Bangalore"]
[Date "2024.01.25"]
[Round "9.9"]
[White "Kushagra Mohan"]
[Black "Sankalp Gupta"]
[Result "1/2-1/2"]
[ECO "B33"]
[WhiteElo "2374"]
[BlackElo "2535"]
[Annotator "TA"]
[PlyCount "60"]
[EventDate "2024.01.20"]
[EventType "swiss"]
[EventCountry "IND"]
[SourceTitle "playchess.com"]
[Source "ChessBase"]
[SourceQuality "1"]
[TimeControl "5400+30"]

{[%evp 23,60,0,0,0,0,0,2,6,17,0,25,0,20,33,40,26,36,30,19,0,0,0,0,0,0,0,11,0,0,0,0,0,0,0,0,0,0,0,0]} 1. e4 {[%emt 0:01:04]} c5 {[%emt 0:00:43]} 2. Nf3 {[%emt 0:00:03]} Nc6 {[%emt 0:00:06]} 3. d4 {[%emt 0:00:04]} cxd4 {[%emt 0:00:04]} 4. Nxd4 {[%emt 0:00:02]} Nf6 {[%emt 0:00:05]} 5. Nc3 {[%emt 0:00:03]} e5 {[%emt 0:00:05]} 6. Ndb5 {[%emt 0:00:04]} d6 {[%emt 0:00:05]} 7. Bg5 {[%emt 0:00:03]} a6 {[%emt 0:00:05]} 8. Na3 {[%emt 0:00:04]} b5 {[%emt 0:00:03]} 9. Nab1 {[%emt 0:00:12]} Be7 {[%emt 0:08:20]} 10. Bxf6 {[%emt 0:00:48]} Bxf6 {[%emt 0:00:01]} 11. a4 {[%emt 0:00:06]} b4 {[%emt 0:00:14]} 12. Nd5 {[%emt 0:00:04]} O-O {[%emt 0:01:46]} 13. Bc4 {[%emt 0:00:07]} Be6 {[%emt 0:00:11]} 14. O-O {[%emt 0:00:07]} a5 {[%emt 0:04:31]} 15. Qd3 {[%emt 0:02:56]} Rc8 {[%emt 0:02:18]} 16. c3 {[%emt 0:02:14]} bxc3 {[%emt 0:01:24]} 17. bxc3 {[%emt 0:03:00]} Ne7 {[%emt 0:04:56]} 18. Nxf6+ {[%emt 0:04:49]} gxf6 {[%emt 0:00:20]} 19. Na3 {[%emt 0:00:45]} Qb6 {[%emt 0:16:25]} 20. Bxe6 {[%emt 0:05:31]} fxe6 {[%emt 0:02:13]} 21. Nc4 {[%emt 0:01:35] The position is equal.} Qa6 {[%emt 0:01:49]} 22. Qxd6 {[%emt 0:01:55]} Qxd6 {[%emt 0:03:19]} 23. Nxd6 {[%emt 0:00:04]} Rxc3 {[%emt 0:04:09]} 24. Rfc1 {[%emt 0:04:05]} Rxc1+ {[%emt 0:00:00]} 25. Rxc1 $11 {[%emt 0:02:18][%mdl 4096] Endgame. KRN-KRN} Rd8 {[%emt 0:00:00]} 26. Nb7 {[%emt 0:00:42]} Rd4 {[%emt 0:00:00][%csl LRa4,LRe4]} 27. Nxa5 {[%emt 0:13:26]} Rxa4 {[%emt 0:00:00]} 28. Nc4 {[%emt 0:00:44]} Ng6 {[%emt 0:01:23]} 29. g3 {[%emt 0:00:17]} Ne7 {[%emt 0:00:56]} 30. Kg2 {[%emt 0:01:57]} Kf8 {[%emt 0:02:20] Weighted Error Value: White=0.03 (flawless) /Black=0.05 (flawless) .  OK:         	White=6     	Black=9} 1/2-1/2